[Event "*** Titled Tuesday 3|2 Blitz"]
[Site "Chess.com"]
[Date "2015.07.07"]
[Round "8"]
[White "MichiganEagle"]
[Black "kesarev"]
[Result "1-0"]
[WhiteElo "2274"]
[BlackElo "2192"]
[TimeControl "180+2"]
[EndTime "12:44:54 PDT"]
[Termination "MichiganEagle won on time"]

1. d4 {[%clk 0:03:01.9]} 1... Nf6 {[%clk 0:02:58.2]} 2. Nf3 {[%clk 0:03:03.5]}
2... g6 {[%clk 0:02:59]} 3. g3 {[%clk 0:03:04.7]} 3... Bg7 {[%clk 0:03:00.5]} 4.
Bg2 {[%clk 0:03:06.3]} 4... O-O {[%clk 0:03:02.4]} 5. O-O {[%clk 0:03:07.9]}
5... d6 {[%clk 0:03:04.1]} 6. a4 {[%clk 0:03:08.9]} 6... c5 {[%clk 0:02:55]} 7.
dxc5 {[%clk 0:03:07.6]} 7... dxc5 {[%clk 0:02:55.9]} 8. Qxd8 {[%clk 0:03:09.2]}
8... Rxd8 {[%clk 0:02:56.4]} 9. a5 {[%clk 0:03:11.1]} 9... Na6 {[%clk
0:02:49.6]} 10. c3 {[%clk 0:02:47.7]} 10... Bf5 {[%clk 0:02:44.9]} 11. Nbd2
{[%clk 0:02:39.5]} 11... Ne8 {[%clk 0:02:32.8]} 12. Nh4 {[%clk 0:02:37.5]} 12...
Bc8 {[%clk 0:02:28.1]} 13. Nc4 {[%clk 0:02:37.6]} 13... Nd6 {[%clk 0:02:17.1]}
14. Nxd6 {[%clk 0:02:31.4]} 14... Rxd6 {[%clk 0:02:12.5]} 15. Bf4 {[%clk
0:02:30]} 15... e5 {[%clk 0:02:12.9]} 16. Be3 {[%clk 0:02:29.7]} 16... Kf8
{[%clk 0:02:08.8]} 17. Rfd1 {[%clk 0:02:01.5]} 17... Ke7 {[%clk 0:01:55.7]} 18.
Bd5 {[%clk 0:01:55.7]} 18... Rb8 {[%clk 0:01:48.2]} 19. b4 {[%clk 0:01:54.2]}
19... cxb4 {[%clk 0:01:22.6]} 20. cxb4 {[%clk 0:01:56.1]} 20... Be6 {[%clk
0:01:20.5]} 21. Bxe6 {[%clk 0:01:47.7]} 21... Rxd1+ {[%clk 0:01:14.7]} 22. Rxd1
{[%clk 0:01:49.6]} 22... Kxe6 {[%clk 0:01:16.1]} 23. b5 {[%clk 0:01:37.8]} 23...
Nc7 {[%clk 0:01:01.4]} 24. Bxa7 {[%clk 0:01:09.6]} 24... Ra8 {[%clk 0:01:02.1]}
25. Bb6 {[%clk 0:01:07.6]} 25... Nxb5 {[%clk 0:01:01.9]} 26. Nf3 {[%clk
0:01:09.2]} 26... h6 {[%clk 0:00:40.4]} 27. Rc1 {[%clk 0:01:04.6]} 27... e4
{[%clk 0:00:38.3]} 28. Nd2 {[%clk 0:01:01.8]} 28... f5 {[%clk 0:00:35]} 29. Nb3
{[%clk 0:01:02.8]} 29... Nc3 {[%clk 0:00:31.3]} 30. Rc2 {[%clk 0:00:59.6]} 30...
Kd5 {[%clk 0:00:29.3]} 31. Nc5 {[%clk 0:00:52.9]} 31... Rb8 {[%clk 0:00:25.1]}
32. f3 {[%clk 0:00:46.7]} 32... exf3 {[%clk 0:00:22.9]} 33. exf3 {[%clk
0:00:46.5]} 33... Bd4+ {[%clk 0:00:21.8]} 34. Kg2 {[%clk 0:00:46.8]} 34... Bxc5
{[%clk 0:00:16.1]} 35. Rxc3 {[%clk 0:00:47.5]} 35... Bd6 {[%clk 0:00:13.3]} 36.
Rd3+ {[%clk 0:00:43.3]} 36... Kc6 {[%clk 0:00:14]} 37. h4 {[%clk 0:00:41.9]}
37... Re8 {[%clk 0:00:14]} 38. Rc3+ {[%clk 0:00:40.4]} 38... Kb5 {[%clk
0:00:14]} 39. Rb3+ {[%clk 0:00:39]} 39... Kc4 {[%clk 0:00:14.2]} 40. Rb2 {[%clk
0:00:38.4]} 40... Kd5 {[%clk 0:00:12.4]} 41. Bf2 {[%clk 0:00:33.5]} 41... Kc6
{[%clk 0:00:12.1]} 42. Rb6+ {[%clk 0:00:34]} 42... Kc7 {[%clk 0:00:11.3]} 43. a6
{[%clk 0:00:31.5]} 43... bxa6 {[%clk 0:00:11.6]} 44. Rxa6 {[%clk 0:00:33.4]}
44... Re2 {[%clk 0:00:11.4]} 45. Kf1 {[%clk 0:00:32.1]} 45... Rc2 {[%clk
0:00:11.6]} 46. Ra7+ {[%clk 0:00:32.5]} 46... Kc6 {[%clk 0:00:11]} 47. Rg7
{[%clk 0:00:33.9]} 47... f4 {[%clk 0:00:07.7]} 48. Rxg6 {[%clk 0:00:30]} 48...
Kd5 {[%clk 0:00:07.8]} 49. g4 {[%clk 0:00:27.3]} 49... Rc3 {[%clk 0:00:03.9]}
50. Kg2 {[%clk 0:00:27.4]} 50... Rc2 {[%clk 0:00:05.2]} 51. Kg1 {[%clk
0:00:24.8]} 51... Rc1+ {[%clk 0:00:05.5]} 52. Kg2 {[%clk 0:00:24.8]} 52... Rc2
{[%clk 0:00:06.7]} 53. Kf1 {[%clk 0:00:12.6]} 53... Rc1+ {[%clk 0:00:07]} 54.
Ke2 {[%clk 0:00:13.6]} 54... Rc2+ {[%clk 0:00:06.8]} 55. Kf1 {[%clk 0:00:14.3]}
55... Rc1+ {[%clk 0:00:07.4]} 56. Kg2 {[%clk 0:00:15.4]} 56... Rc2 {[%clk
0:00:08]} 57. Rf6 {[%clk 0:00:11]} 57... Be5 {[%clk 0:00:05.6]} 58. Rf5 {[%clk
0:00:12]} 58... Ke6 {[%clk 0:00:06.5]} 59. Kf1 {[%clk 0:00:09.6]} 59... Rc1+
{[%clk 0:00:06.8]} 60. Ke2 {[%clk 0:00:10.6]} 60... Rc2+ {[%clk 0:00:08]} 61.
Kf1 {[%clk 0:00:09.4]} 61... Rc1+ {[%clk 0:00:08.5]} 62. Kg2 {[%clk 0:00:10.8]}
62... Rc2 {[%clk 0:00:09.5]} 63. Kg1 {[%clk 0:00:08.5]} 63... Rc1+ {[%clk
0:00:10]} 64. Kg2 {[%clk 0:00:09.8]} 64... Rc2 {[%clk 0:00:11.1]} 65. Kf1 {[%clk
0:00:08.5]} 65... Rc1+ {[%clk 0:00:11.8]} 66. Ke2 {[%clk 0:00:09.5]} 66... Rc2+
{[%clk 0:00:12.8]} 67. Ke1 {[%clk 0:00:09.9]} 67... Rc1+ {[%clk 0:00:04.7]} 68.
Kd2 {[%clk 0:00:10.9]} 68... Rf1 {[%clk 0:00:05]} 69. Ke2 {[%clk 0:00:12.2]}
69... Rc1 {[%clk 0:00:04.4]} 70. Rf8 {[%clk 0:00:12.5]} 70... Rc2+ {[%clk
0:00:05.4]} 71. Ke1 {[%clk 0:00:13.4]} 71... Bc3+ {[%clk 0:00:05.7]} 72. Kf1
{[%clk 0:00:14.7]} 72... Bf6 {[%clk 0:00:04.4]} 73. Re8+ {[%clk 0:00:15.5]}
73... Kf7 {[%clk 0:00:05.3]} 74. Ra8 {[%clk 0:00:16.2]} 74... Rc1+ {[%clk
0:00:05.4]} 75. Kg2 {[%clk 0:00:16.6]} 75... Rc2 {[%clk 0:00:06.7]} 76. Ra7+
{[%clk 0:00:18.1]} 76... Kg6 {[%clk 0:00:07.1]} 77. Ra6 {[%clk 0:00:19.3]} 77...
Kg7 {[%clk 0:00:07.7]} 78. Kf1 {[%clk 0:00:20.4]} 78... Rc3 {[%clk 0:00:06.5]}
79. Ra7+ {[%clk 0:00:19.3]} 79... Kg8 {[%clk 0:00:05.2]} 80. Ra8+ {[%clk
0:00:19.7]} 80... Kg7 {[%clk 0:00:06.1]} 81. Ra7+ {[%clk 0:00:21.2]} 81... Kg8
{[%clk 0:00:07.3]} 82. Ra6 {[%clk 0:00:22.1]} 82... Kg7 {[%clk 0:00:08]} 83. Ke2
{[%clk 0:00:20.7]} 83... Rc2+ {[%clk 0:00:08.8]} 84. Ke1 {[%clk 0:00:22]} 84...
Bc3+ {[%clk 0:00:04.9]} 85. Kf1 {[%clk 0:00:22.9]} 85... Be5 {[%clk 0:00:03.8]}
86. Re6 {[%clk 0:00:20.7]} 86... Bf6 {[%clk 0:00:03.3]} 87. Re2 {[%clk
0:00:20.5]} 87... Rc1+ {[%clk 0:00:03.5]} 88. Kg2 {[%clk 0:00:21.6]} 88... Rb1
{[%clk 0:00:04.1]} 89. Bc5 {[%clk 0:00:22.4]} 1-0

[Event "*** Titled Tuesday 3|2 Blitz"]
[Site "Chess.com"]
[Date "2015.07.07"]
[Round "9"]
[White "VSERGUEI"]
[Black "Hikaru"]
[Result "1/2-1/2"]
[WhiteElo "2569"]
[BlackElo "2838"]
[TimeControl "180+2"]
[EndTime "12:46:26 PDT"]
[Termination "Game drawn by agreement"]

1. d4 {[%clk 0:03:01.9]} 1... d6 {[%clk 0:02:59.9]} 2. Nf3 {[%clk 0:03:01.1]}
2... g6 {[%clk 0:03:01.8]} 3. c4 {[%clk 0:03:01.2]} 3... Bg7 {[%clk 0:03:02.9]}
4. Nc3 {[%clk 0:03:02.1]} 4... Nd7 {[%clk 0:03:04]} 5. e4 {[%clk 0:03:02]} 5...
Nh6 {[%clk 0:03:05.1]} 6. Be2 {[%clk 0:03:01.7]} 6... e5 {[%clk 0:03:05.9]} 7.
O-O {[%clk 0:02:56.5]} 7... O-O {[%clk 0:03:06.1]} 8. Re1 {[%clk 0:02:53.2]}
8... f5 {[%clk 0:03:02.8]} 9. dxe5 {[%clk 0:02:52.7]} 9... Nxe5 {[%clk
0:03:03.2]} 10. Nxe5 {[%clk 0:02:50.4]} 10... dxe5 {[%clk 0:03:03.6]} 11. Qxd8
{[%clk 0:02:49.1]} 11... Rxd8 {[%clk 0:03:05.5]} 12. Bg5 {[%clk 0:02:47.6]}
1/2-1/2

[Event "*** Titled Tuesday 3|2 Blitz"]
[Site "Chess.com"]
[Date "2015.07.07"]
[Round "9"]
[White "WanderingPuppet"]
[Black "1random"]
[Result "1-0"]
[WhiteElo "2198"]
[BlackElo "1994"]
[TimeControl "180+2"]
[EndTime "12:49:28 PDT"]
[Termination "WanderingPuppet won by checkmate"]

1. e4 {[%clk 0:02:55.1]} 1... b6 {[%clk 0:02:58.9]} 2. d4 {[%clk 0:02:54.7]}
2... Bb7 {[%clk 0:03:00.5]} 3. Nc3 {[%clk 0:02:56]} 3... e6 {[%clk 0:03:02]} 4.
Bd3 {[%clk 0:02:57.5]} 4... Nf6 {[%clk 0:03:01.6]} 5. Qe2 {[%clk 0:02:56.6]}
5... d6 {[%clk 0:02:56.7]} 6. Nf3 {[%clk 0:02:56.5]} 6... Be7 {[%clk 0:02:57.6]}
7. e5 {[%clk 0:02:55.8]} 7... dxe5 {[%clk 0:02:56.6]} 8. dxe5 {[%clk 0:02:55.9]}
8... Nd5 {[%clk 0:02:56.5]} 9. O-O {[%clk 0:02:57.3]} 9... Nxc3 {[%clk
0:02:57.3]} 10. bxc3 {[%clk 0:02:59.2]} 10... Nd7 {[%clk 0:02:57.6]} 11. Rd1
{[%clk 0:02:54.7]} 11... Qc8 {[%clk 0:02:56.4]} 12. a4 {[%clk 0:02:47]} 12... a5
{[%clk 0:02:57.4]} 13. Bb5 {[%clk 0:02:44.3]} 13... c6 {[%clk 0:02:56.2]} 14.
Bd3 {[%clk 0:02:44.6]} 14... Nc5 {[%clk 0:02:54.5]} 15. Ba3 {[%clk 0:02:36.7]}
15... Nxd3 {[%clk 0:02:50]} 16. Qxd3 {[%clk 0:02:26.5]} 16... Bxa3 {[%clk
0:02:50.5]} 17. Rxa3 {[%clk 0:02:28.4]} 17... O-O {[%clk 0:02:51.8]} 18. Qe3
{[%clk 0:02:23.1]} 18... c5 {[%clk 0:02:47.2]} 19. h3 {[%clk 0:02:16.9]} 19...
Bxf3 {[%clk 0:02:45.6]} 20. Qxf3 {[%clk 0:02:16.8]} 20... Ra7 {[%clk 0:02:45.9]}
21. c4 {[%clk 0:02:16.1]} 21... Rd7 {[%clk 0:02:41.8]} 22. Rad3 {[%clk
0:02:16.3]} 22... Rfd8 {[%clk 0:02:42.2]} 23. Rxd7 {[%clk 0:02:10.9]} 23... Rxd7
{[%clk 0:02:44.1]} 24. Rxd7 {[%clk 0:02:11.4]} 24... Qe8 {[%clk 0:02:34.7]} 25.
Qd3 {[%clk 0:02:09.4]} 25... g6 {[%clk 0:02:33.7]} 26. Rd8 {[%clk 0:02:10.4]}
26... Qxd8 {[%clk 0:02:35.1]} 27. Qxd8+ {[%clk 0:02:11.6]} 27... Kg7 {[%clk
0:02:37]} 28. Qf6+ {[%clk 0:02:13.5]} 28... Kg8 {[%clk 0:02:36.1]} 29. g4 {[%clk
0:02:14.1]} 29... h5 {[%clk 0:02:38]} 30. gxh5 {[%clk 0:02:13.7]} 30... gxh5
{[%clk 0:02:39.9]} 31. Kg2 {[%clk 0:02:15]} 31... Kf8 {[%clk 0:02:41.8]} 32. Kf3
{[%clk 0:02:16.5]} 32... Ke8 {[%clk 0:02:43.7]} 33. Ke4 {[%clk 0:02:17.6]} 33...
Kd7 {[%clk 0:02:45.2]} 34. Qxf7+ {[%clk 0:02:17.7]} 34... Kc6 {[%clk 0:02:46]}
35. Qxe6+ {[%clk 0:02:18.7]} 35... Kb7 {[%clk 0:02:47.9]} 36. Qd7+ {[%clk
0:02:18.2]} 36... Ka6 {[%clk 0:02:49.1]} 37. Qb5+ {[%clk 0:02:19.8]} 37... Kb7
{[%clk 0:02:49.7]} 38. Kd5 {[%clk 0:02:20.4]} 38... h4 {[%clk 0:02:51.6]} 39.
Kd6 {[%clk 0:02:17.8]} 39... Ka7 {[%clk 0:02:52.5]} 40. e6 {[%clk 0:02:16]}
40... Ka8 {[%clk 0:02:54.4]} 41. e7 {[%clk 0:02:16.5]} 41... Ka7 {[%clk
0:02:55.6]} 42. e8=Q {[%clk 0:02:16.5]} 42... Kb7 {[%clk 0:02:56.9]} 43. Qed7+
{[%clk 0:02:15.3]} 43... Ka8 {[%clk 0:02:56.8]} 44. Qc8+ {[%clk 0:02:15.1]}
44... Ka7 {[%clk 0:02:58]} 45. Qbd7# {[%clk 0:02:14.6]} 1-0

[Event "*** Titled Tuesday 3|2 Blitz"]
[Site "Chess.com"]
[Date "2015.07.07"]
[Round "9"]
[White "lexiel"]
[Black "ChessWarrior7197"]
[Result "1-0"]
[WhiteElo "2262"]
[BlackElo "2332"]
[TimeControl "180+2"]
[EndTime "12:50:38 PDT"]
[Termination "lexiel won - game abandoned"]

1. d4 {[%clk 0:03:01.9]} 1... Nf6 {[%clk 0:03:00.5]} 2. Nc3 {[%clk 0:03:03.2]}
2... d5 {[%clk 0:03:00.5]} 3. Bf4 {[%clk 0:03:04.3]} 3... e6 {[%clk 0:03:00.1]}
4. e3 {[%clk 0:03:05.1]} 4... Bb4 {[%clk 0:03:00]} 5. Bd3 {[%clk 0:03:06.2]}
5... c5 {[%clk 0:03:00.3]} 6. dxc5 {[%clk 0:03:06.7]} 6... Nbd7 {[%clk
0:02:56.8]} 7. Ne2 {[%clk 0:03:07.7]} 7... Nxc5 {[%clk 0:02:56.3]} 8. O-O {[%clk
0:03:08.3]} 8... O-O {[%clk 0:02:55.4]} 9. a3 {[%clk 0:03:09]} 9... Bxc3 {[%clk
0:02:54.3]} 10. Nxc3 {[%clk 0:03:09.6]} 10... Nxd3 {[%clk 0:02:55.4]} 11. cxd3
{[%clk 0:03:06.1]} 11... Bd7 {[%clk 0:02:56]} 12. Rc1 {[%clk 0:03:00.9]} 12...
Qb6 {[%clk 0:02:54.3]} 13. Qd2 {[%clk 0:02:59.9]} 13... Rac8 {[%clk 0:02:54.5]}
14. h3 {[%clk 0:03:00.2]} 14... d4 {[%clk 0:02:52.5]} 15. exd4 {[%clk
0:02:55.8]} 15... Qxd4 {[%clk 0:02:53.5]} 16. Rfe1 {[%clk 0:02:56.6]} 16... Nd5
{[%clk 0:02:40.8]} 17. Be5 {[%clk 0:02:56.6]} 17... Qh4 {[%clk 0:02:38.6]} 18.
Nxd5 {[%clk 0:02:40]} 18... exd5 {[%clk 0:02:38.6]} 19. Rxc8 {[%clk 0:02:35.5]}
19... Rxc8 {[%clk 0:02:38.5]} 20. Qa5 {[%clk 0:02:35.8]} 20... a6 {[%clk
0:02:33.1]} 21. Qxd5 {[%clk 0:02:35.6]} 21... Bc6 {[%clk 0:02:32]} 22. Qc4
{[%clk 0:02:27.6]} 22... Qxc4 {[%clk 0:02:26.2]} 23. dxc4 {[%clk 0:02:28.4]}
23... Re8 {[%clk 0:02:27.9]} 24. f3 {[%clk 0:02:24.4]} 24... f6 {[%clk
0:02:27.9]} 25. Bc3 {[%clk 0:02:25.6]} 25... Rxe1+ {[%clk 0:02:27.8]} 26. Bxe1
{[%clk 0:02:27.5]} 26... Ba4 {[%clk 0:02:28.6]} 27. Kf2 {[%clk 0:02:27.2]} 27...
Bb3 {[%clk 0:02:29.7]} 28. c5 {[%clk 0:02:28.8]} 28... Kf7 {[%clk 0:02:29.4]}
29. Ke3 {[%clk 0:02:30.5]} 29... Ke6 {[%clk 0:02:30.3]} 30. Kd4 {[%clk
0:02:32.1]} 30... Bd5 {[%clk 0:02:28.8]} 31. Bg3 {[%clk 0:02:27.4]} 31... g5
{[%clk 0:02:28.9]} 32. Bc7 {[%clk 0:02:27.5]} 32... f5 {[%clk 0:02:29.5]} 33.
Bd8 {[%clk 0:02:28]} 33... g4 {[%clk 0:02:29.1]} 34. hxg4 {[%clk 0:02:24.7]}
34... fxg4 {[%clk 0:02:29.9]} 35. Ke3 {[%clk 0:02:26.3]} 35... h5 {[%clk
0:02:25]} 36. b4 {[%clk 0:02:26.6]} 1-0

[Event "*** Titled Tuesday 3|2 Blitz"]
[Site "Chess.com"]
[Date "2015.07.07"]
[Round "9"]
[White "AndreyOstrovskiy"]
[Black "Jahonas"]
[Result "1-0"]
[WhiteElo "2335"]
[BlackElo "2119"]
[TimeControl "180+2"]
[EndTime "12:50:53 PDT"]
[Termination "AndreyOstrovskiy won by resignation"]

1. e4 {[%clk 0:03:01.9]} 1... c6 {[%clk 0:03:01.1]} 2. d4 {[%clk 0:03:02.3]}
2... d5 {[%clk 0:03:02.4]} 3. exd5 {[%clk 0:03:03.4]} 3... cxd5 {[%clk
0:03:03.6]} 4. Bd3 {[%clk 0:03:04.8]} 4... Nf6 {[%clk 0:03:04.9]} 5. c3 {[%clk
0:03:06.1]} 5... Nc6 {[%clk 0:03:06.2]} 6. Bf4 {[%clk 0:03:07.2]} 6... g6 {[%clk
0:03:06]} 7. Nf3 {[%clk 0:03:08.1]} 7... Bg7 {[%clk 0:03:06.8]} 8. O-O {[%clk
0:03:09.2]} 8... O-O {[%clk 0:03:07.9]} 9. Re1 {[%clk 0:03:10.5]} 9... Bf5
{[%clk 0:03:08.8]} 10. Bxf5 {[%clk 0:03:10.1]} 10... gxf5 {[%clk 0:03:10.7]} 11.
Ne5 {[%clk 0:03:08.7]} 11... e6 {[%clk 0:03:10.9]} 12. Nd2 {[%clk 0:03:05.2]}
12... Nxe5 {[%clk 0:03:10.5]} 13. Bxe5 {[%clk 0:03:05.6]} 13... Nd7 {[%clk
0:03:04]} 14. Bxg7 {[%clk 0:03:05.6]} 14... Kxg7 {[%clk 0:03:04.7]} 15. Re3
{[%clk 0:03:05]} 15... Kh8 {[%clk 0:03:04.5]} 16. Rh3 {[%clk 0:03:05.5]} 16...
Qf6 {[%clk 0:03:03.1]} 17. Qh5 {[%clk 0:03:01.2]} 17... Qg6 {[%clk 0:03:00.8]}
18. Qxg6 {[%clk 0:03:01.5]} 18... fxg6 {[%clk 0:03:01.8]} 19. Re1 {[%clk
0:03:02.5]} 19... Rf6 {[%clk 0:02:56]} 20. Rhe3 {[%clk 0:03:02.3]} 20... Nf8
{[%clk 0:02:56.6]} 21. Nf3 {[%clk 0:02:58.4]} 21... h6 {[%clk 0:02:56]} 22. h4
{[%clk 0:02:57.9]} 22... b5 {[%clk 0:02:54.6]} 23. Ra1 {[%clk 0:02:53.3]} 23...
Rf7 {[%clk 0:02:53.4]} 24. a4 {[%clk 0:02:53.6]} 24... Rb7 {[%clk 0:02:46.7]}
25. axb5 {[%clk 0:02:41.6]} 25... Rxb5 {[%clk 0:02:46.7]} 26. Re2 {[%clk
0:02:40.7]} 26... a5 {[%clk 0:02:45.2]} 27. Ne5 {[%clk 0:02:36.4]} 27... Rab8
{[%clk 0:02:39.6]} 28. Nd3 {[%clk 0:02:36.9]} 28... Kg8 {[%clk 0:02:37.5]} 29.
Ra4 {[%clk 0:02:28.1]} 29... Kf7 {[%clk 0:02:36.9]} 30. Re1 {[%clk 0:02:29.2]}
30... Nd7 {[%clk 0:02:30.5]} 31. Rea1 {[%clk 0:02:26]} 31... Ra8 {[%clk
0:02:27.7]} 32. Kf1 {[%clk 0:02:18.4]} 32... Nb6 {[%clk 0:02:26.9]} 33. Ne5+
{[%clk 0:02:12]} 33... Kg7 {[%clk 0:02:25.9]} 34. R4a2 {[%clk 0:02:12.3]} 34...
Nc4 {[%clk 0:02:21.1]} 35. b4 {[%clk 0:01:58.6]} 35... Nxe5 {[%clk 0:01:59.3]}
36. dxe5 {[%clk 0:01:58.8]} 36... Rc8 {[%clk 0:01:57.7]} 37. Rxa5 {[%clk
0:01:57.6]} 37... Rxa5 {[%clk 0:01:56.7]} 38. bxa5 {[%clk 0:01:58.3]} 38... Rxc3
{[%clk 0:01:56.8]} 39. a6 {[%clk 0:01:59.5]} 39... Rc8 {[%clk 0:01:57.9]} 40. a7
{[%clk 0:02:00]} 40... Ra8 {[%clk 0:01:59]} 41. Ke2 {[%clk 0:02:01.2]} 41... Kf7
{[%clk 0:02:00.2]} 42. Kd3 {[%clk 0:02:01.1]} 42... Ke7 {[%clk 0:02:01.4]} 43.
Kd4 {[%clk 0:02:01.7]} 43... Kd7 {[%clk 0:02:02.4]} 44. Ra6 {[%clk 0:02:01.7]}
44... g5 {[%clk 0:02:01.4]} 45. h5 {[%clk 0:02:01.8]} 45... Kc7 {[%clk
0:02:00.2]} 46. Rxe6 {[%clk 0:02:00.5]} 1-0

[Event "*** Titled Tuesday 3|2 Blitz"]
[Site "Chess.com"]
[Date "2015.07.07"]
[Round "9"]
[White "kesarev"]
[Black "PauloCesarCosta"]
[Result "1/2-1/2"]
[WhiteElo "2188"]
[BlackElo "2017"]
[TimeControl "180+2"]
[EndTime "12:50:53 PDT"]
[Termination "Game drawn by agreement"]

1. Nf3 {[%clk 0:03:01.9]} 1... Nf6 {[%clk 0:02:59.9]} 2. c4 {[%clk 0:03:02.5]}
2... c6 {[%clk 0:02:58.3]} 3. e3 {[%clk 0:03:02.2]} 3... d5 {[%clk 0:02:59.7]}
4. Nc3 {[%clk 0:03:02.1]} 4... Bg4 {[%clk 0:02:57.5]} 5. Qb3 {[%clk 0:03:00.5]}
5... Qb6 {[%clk 0:02:58.4]} 6. cxd5 {[%clk 0:02:57.3]} 6... Qxb3 {[%clk
0:02:58.2]} 7. axb3 {[%clk 0:02:58.1]} 7... Bxf3 {[%clk 0:02:54.7]} 8. gxf3
{[%clk 0:02:58]} 8... Nxd5 {[%clk 0:02:55.3]} 9. e4 {[%clk 0:02:55]} 9... Nc7
{[%clk 0:02:40.9]} 10. d4 {[%clk 0:02:53.2]} 10... e6 {[%clk 0:02:41]} 11. Bf4
{[%clk 0:02:53.7]} 11... Kd7 {[%clk 0:02:19.4]} 12. Bd3 {[%clk 0:02:48.2]} 12...
Bb4 {[%clk 0:02:20]} 13. Ke2 {[%clk 0:02:48.9]} 13... Nba6 {[%clk 0:02:11.5]}
14. Rhg1 {[%clk 0:02:47.2]} 14... g6 {[%clk 0:02:10.9]} 15. h4 {[%clk
0:02:47.1]} 15... Rad8 {[%clk 0:01:56.4]} 16. h5 {[%clk 0:02:47.4]} 16... Kc8
{[%clk 0:01:55.5]} 17. Be5 {[%clk 0:02:47.3]} 17... Rhg8 {[%clk 0:01:51.7]} 18.
Bf6 {[%clk 0:02:46]} 18... Rd7 {[%clk 0:01:42.3]} 19. hxg6 {[%clk 0:02:46.3]}
19... hxg6 {[%clk 0:01:42.2]} 20. Rh1 {[%clk 0:02:42.6]} 20... Be7 {[%clk
0:01:36.7]} 21. Bxe7 {[%clk 0:02:43.2]} 21... Rxe7 {[%clk 0:01:37.6]} 22. Rh7
{[%clk 0:02:38.1]} 22... Kb8 {[%clk 0:01:25.7]} 23. Na4 {[%clk 0:02:27.9]} 23...
Nb4 {[%clk 0:01:23.3]} 24. Rah1 {[%clk 0:02:23.5]} 24... Nxd3 {[%clk 0:01:22.9]}
25. Kxd3 {[%clk 0:02:24.1]} 25... Na6 {[%clk 0:01:17]} 26. Kc3 {[%clk
0:02:20.5]} 26... Kc7 {[%clk 0:01:14.4]} 27. b4 {[%clk 0:02:21.6]} 27... Kd8
{[%clk 0:01:10.8]} 28. Nc5 {[%clk 0:02:22.5]} 28... Nb8 {[%clk 0:01:00.9]} 29.
Rh8 {[%clk 0:02:21.7]} 29... Ree8 {[%clk 0:01:00.1]} 30. Rxg8 {[%clk 0:02:21.9]}
30... Rxg8 {[%clk 0:01:00.9]} 31. Rh7 {[%clk 0:02:23.8]} 31... b6 {[%clk
0:00:50.1]} 32. Nd3 {[%clk 0:02:18.2]} 1/2-1/2

[Event "*** Titled Tuesday 3|2 Blitz"]
[Site "Chess.com"]
[Date "2015.07.07"]
[Round "9"]
[White "Lupul_Cenusiu"]
[Black "Viaje"]
[Result "1/2-1/2"]
[WhiteElo "2377"]
[BlackElo "2251"]
[TimeControl "180+2"]
[EndTime "12:51:30 PDT"]
[Termination "Game drawn by repetition"]

1. d4 {[%clk 0:03:01.9]} 1... Nf6 {[%clk 0:03:00.4]} 2. c4 {[%clk 0:03:02.8]}
2... c5 {[%clk 0:03:01.7]} 3. d5 {[%clk 0:03:02.8]} 3... b5 {[%clk 0:03:03.2]}
4. Nf3 {[%clk 0:03:01.3]} 4... Bb7 {[%clk 0:03:03.3]} 5. Nc3 {[%clk 0:02:59.7]}
5... b4 {[%clk 0:03:03.6]} 6. Na4 {[%clk 0:02:59.6]} 6... d6 {[%clk 0:03:02.3]}
7. a3 {[%clk 0:02:59.6]} 7... a5 {[%clk 0:03:02.8]} 8. Qc2 {[%clk 0:02:56.6]}
8... g6 {[%clk 0:03:01.4]} 9. e4 {[%clk 0:02:56.5]} 9... Nbd7 {[%clk 0:03:01.7]}
10. h3 {[%clk 0:02:56.7]} 10... Bg7 {[%clk 0:03:02.9]} 11. Bd3 {[%clk
0:02:57.5]} 11... O-O {[%clk 0:02:59.9]} 12. O-O {[%clk 0:02:58.4]} 12... e6
{[%clk 0:03:00.3]} 13. dxe6 {[%clk 0:02:53]} 13... fxe6 {[%clk 0:03:00.6]} 14.
Re1 {[%clk 0:02:47.5]} 14... e5 {[%clk 0:03:01.4]} 15. axb4 {[%clk 0:02:46.3]}
15... axb4 {[%clk 0:03:02]} 16. b3 {[%clk 0:02:43.9]} 16... Nb8 {[%clk
0:03:02.5]} 17. Bg5 {[%clk 0:02:33.9]} 17... Nc6 {[%clk 0:03:02.3]} 18. Nb2
{[%clk 0:02:29.6]} 18... Qd7 {[%clk 0:03:01.5]} 19. Bxf6 {[%clk 0:02:28.7]}
19... Rxf6 {[%clk 0:03:02.7]} 20. Rxa8+ {[%clk 0:02:25.4]} 20... Bxa8 {[%clk
0:03:02.8]} 21. Be2 {[%clk 0:02:26.7]} 21... Bb7 {[%clk 0:02:57.2]} 22. Nd1
{[%clk 0:02:24.1]} 22... Nd4 {[%clk 0:02:57.1]} 23. Nxd4 {[%clk 0:02:22.3]}
23... exd4 {[%clk 0:02:56]} 24. Nb2 {[%clk 0:02:21.1]} 24... Rf8 {[%clk
0:02:54.7]} 25. Nd3 {[%clk 0:02:21.2]} 25... Bxe4 {[%clk 0:02:54.1]} 26. Bg4
{[%clk 0:02:19.8]} 26... Bxd3 {[%clk 0:02:53.5]} 27. Qxd3 {[%clk 0:02:19.7]}
27... Qc7 {[%clk 0:02:49.7]} 28. Be6+ {[%clk 0:02:20.5]} 28... Kh8 {[%clk
0:02:50.4]} 29. g3 {[%clk 0:02:20.7]} 29... Re8 {[%clk 0:02:50.4]} 30. Re4
{[%clk 0:02:21.1]} 30... Bf6 {[%clk 0:02:50.6]} 31. h4 {[%clk 0:02:21.6]} 31...
Kg7 {[%clk 0:02:50.2]} 32. Kg2 {[%clk 0:02:22.7]} 32... Qc6 {[%clk 0:02:50]} 33.
Bd5 {[%clk 0:02:23.3]} 33... Qd7 {[%clk 0:02:49.4]} 34. h5 {[%clk 0:02:22]}
34... Rxe4 {[%clk 0:02:49.6]} 35. Bxe4 {[%clk 0:02:23.1]} 35... Qg4 {[%clk
0:02:40.3]} 36. hxg6 {[%clk 0:02:22.3]} 36... hxg6 {[%clk 0:02:41.3]} 37. Bf3
{[%clk 0:02:23.4]} 37... Qg5 {[%clk 0:02:40.5]} 38. Be4 {[%clk 0:02:22.3]} 38...
Qg4 {[%clk 0:02:39.8]} 39. Qb1 {[%clk 0:02:18.4]} 39... Be5 {[%clk 0:02:32.5]}
40. Bd3 {[%clk 0:02:16.6]} 40... Qe6 {[%clk 0:02:22]} 41. Qa1 {[%clk 0:02:16.6]}
41... Qe7 {[%clk 0:02:20.8]} 42. Qa8 {[%clk 0:02:16.4]} 42... Bf6 {[%clk
0:02:16.7]} 43. Qc8 {[%clk 0:02:15.2]} 43... Be5 {[%clk 0:02:16.4]} 44. Qg4
{[%clk 0:02:14]} 44... Qf7 {[%clk 0:02:13.8]} 45. f4 {[%clk 0:02:13.7]} 45...
Bf6 {[%clk 0:02:14]} 46. Be4 {[%clk 0:02:14.9]} 46... Qe8 {[%clk 0:02:11.7]} 47.
Kf3 {[%clk 0:02:15.6]} 47... Qf7 {[%clk 0:02:12.5]} 48. Qc8 {[%clk 0:02:15.3]}
48... Qe7 {[%clk 0:02:12]} 49. g4 {[%clk 0:02:11.5]} 49... g5 {[%clk 0:02:12.3]}
50. Qf5 {[%clk 0:02:11.2]} 50... gxf4 {[%clk 0:02:10.4]} 51. Kxf4 {[%clk
0:02:03.9]} 51... Qe5+ {[%clk 0:02:10.3]} 52. Qxe5 {[%clk 0:02:02.6]} 52...
Bxe5+ {[%clk 0:02:07.8]} 53. Kf5 {[%clk 0:02:03.7]} 53... Bh2 {[%clk 0:02:07.9]}
54. g5 {[%clk 0:02:03.9]} 54... Bg3 {[%clk 0:02:08.3]} 55. g6 {[%clk 0:02:04.2]}
55... Bh2 {[%clk 0:02:09.4]} 56. Ke6 {[%clk 0:02:05.6]} 56... Be5 {[%clk
0:02:10.2]} 57. Kf5 {[%clk 0:02:06.9]} 57... Bh2 {[%clk 0:02:11.4]} 58. Ke6
{[%clk 0:02:08.3]} 58... Be5 {[%clk 0:02:13]} 59. Kf5 {[%clk 0:02:09.6]} 59...
Bh2 {[%clk 0:02:13.3]} 1/2-1/2